bitfinex/quotes_BTCUSD_20240918
["timestamp","ask_amount","ask_price","bid_price","bid_amount"]
[1726688216114,0.890032,60384.0,60383.0,0.0011244]
[1726688216342,1.321245,60384.0,60383.0,0.0011244]
[1726688216606,1.652458,60384.0,60383.0,0.0011244]
[1726688216843,1.492535,60381.0,60380.0,0.000824]
[1726688217058,1.592535,60381.0,60380.0,0.000824]
[1726688217757,1.622535,60381.0,60380.0,0.000824]
[1726688217987,1.620535,60381.0,60380.0,0.000824]
[1726688218213,1.259305,60381.0,60380.0,0.000824]
[1726688218472,1.592535,60381.0,60380.0,0.000824]
[1726688218970,1.590535,60381.0,60380.0,0.000824]
[1726688219159,1.592535,60381.0,60380.0,0.000824]
[1726688219423,1.981765,60381.0,60380.0,0.000824]
[1726688219649,1.983765,60381.0,60380.0,0.000824]
[1726688220128,1.983765,60381.0,60366.0,0.000824]
[1726688220129,0.002,60374.0,60366.0,0.000824]
[1726688220584,0.03,60380.0,60358.0,1.20520826]
[1726688220585,1.03258781,60359.0,60358.0,1.20520826]
[1726688220591,1.36393781,60359.0,60358.0,1.20520826]
[1726688220816,2.47298781,60359.0,60358.0,0.21817436]
[1726688221049,0.712083,60352.0,60345.0,0.0041621]
[1726688221287,0.712083,60352.0,60351.0,0.0001]
[1726688221288,1.321861,60352.0,60351.0,0.0001]
[1726688221544,1.67625,60352.0,60351.0,0.0001]
[1726688221803,1.70625,60352.0,60351.0,0.0001]
[1726688222024,1.72553981,60346.0,60345.0,0.0041621]
[1726688222510,1.72553981,60346.0,60345.0,0.0040621]
[1726688222511,1.36411781,60346.0,60345.0,0.0040621]
[1726688222749,0.02600762,60346.0,60345.0,0.0040621]
[1726688223006,0.361332,60363.0,60345.0,0.0040621]
[1726688223007,0.002,60372.0,60345.0,0.0834621]
[1726688223237,0.03,60351.0,60330.0,0.165755]
[1726688223476,0.002,60359.0,60331.0,0.18294293]
[1726688223477,0.09,60356.0,60331.0,0.18294293]
[1726688223709,0.03,60351.0,60342.0,0.023]
[1726688223950,0.06,60356.0,60344.0,0.023]
[1726688223951,0.03,60356.0,60344.0,0.023]
[1726688224213,0.062,60359.0,60341.0,0.43556281]
[1726688224214,0.03,60351.0,60341.0,0.331447]
[1726688224456,0.03,60351.0,60319.0,0.000823]
[1726688224457,0.002,60359.0,60343.0,0.1]
[1726688224696,0.002,60359.0,60358.0,0.165678]
[1726688224930,0.1091,60395.0,60345.0,0.1]
[1726688224931,0.03,60370.0,60363.0,0.331326]
[1726688225158,0.002,60397.0,60345.0,0.1]
[1726688225159,0.03,60367.0,60364.0,0.00331281]
[1726688225411,0.03,60367.0,60350.0,0.43556281]
[1726688225648,0.062,60368.0,60344.0,0.21269041]
[1726688225649,0.03,60364.0,60356.0,0.023]
[1726688225900,0.03,60369.0,60358.0,0.023]
[1726688226136,0.03,60373.0,60370.0,0.165644]
[1726688226372,0.03,60373.0,60358.0,0.023]
[1726688226373,0.03,60373.0,60372.0,0.165639]
[1726688226598,0.03,60374.0,60373.0,0.165636]
[1726688226898,0.03,60374.0,60362.0,0.331331]
[1726688226899,0.03,60362.0,60353.0,0.165689]
[1726688227133,0.03,60362.0,60307.0,0.84102129]
[1726688227134,0.03,60361.0,60359.0,0.077]
[1726688227358,0.03,60368.0,60365.0,0.165658]
[1726688227593,0.03,60363.0,60359.0,0.077]
[1726688227830,0.03,60369.0,60368.0,0.16565]
[1726688228068,0.03,60395.0,60368.0,0.16565]
[1726688228069,0.002,60383.0,60377.0,0.165625]
[1726688228299,0.03,60383.0,60377.0,0.851127]
[1726688228537,0.03,60385.0,60377.0,1.182378]
[1726688228763,0.03,60385.0,60377.0,0.851127]
[1726688228994,0.03,60385.0,60377.0,0.9693669]
[1726688229224,0.03,60383.0,60377.0,0.6151159]
[1726688229691,0.03,60383.0,60377.0,0.9463669]
[1726688230173,0.03,60383.0,60377.0,1.3006179]
[1726688230416,0.165563,60400.0,60377.0,1.3006179]
[1726688230417,0.03,60396.0,60385.0,0.519812]
[1726688230660,0.24843692,60402.0,60401.0,0.16556]
[1726688230890,0.24843692,60402.0,60401.0,0.49668]
[1726688231121,0.002,60409.0,60403.0,0.496663]
[1726688231122,0.03,60405.0,60403.0,0.496663]
[1726688231361,0.03,60405.0,60403.0,0.827772]
[1726688232331,0.331008,60422.0,60403.0,0.827772]
[1726688232332,0.03,60415.0,60405.0,0.123]
[1726688232597,0.03,60427.0,60419.0,0.16551]
[1726688232864,0.03,60424.0,60406.0,0.16305367]
[1726688233113,0.00549,60429.0,60412.0,0.49659]
[1726688233114,0.03,60413.0,60412.0,0.49659]
[1726688233353,0.330976,60428.0,60406.0,0.165546]
[1726688233354,0.03,60407.0,60406.0,0.165546]
[1726688233567,0.06,60412.0,60403.0,0.504809]
[1726688233568,0.03,60404.0,60403.0,0.1737]
[1726688234535,0.03,60404.0,60403.0,0.0804]
[1726688235215,0.03,60404.0,60403.0,0.25312001]
[1726688235440,0.06,60412.0,60404.0,0.16555]
[1726688235441,0.03,60406.0,60404.0,0.16555]
[1726688235666,0.03,60410.0,60405.0,0.0584241]
[1726688235892,0.03,60410.0,60408.0,0.16554]
[1726688236110,0.03,60409.0,60408.0,0.162477]
[1726688236335,0.03,60412.0,60406.0,0.02631067]
[1726688236559,0.03,60396.0,60389.0,0.0818]
[1726688236781,0.03,60396.0,60395.0,0.165576]
[1726688237041,0.03,60396.0,60395.0,0.496729]
[1726688237234,0.03,60404.0,60391.0,0.01747]
[1726688237449,0.002,60402.0,60392.0,0.16305367]
[1726688237667,0.002,60404.0,60403.0,0.165554]
[1726688237884,0.002,60404.0,60403.0,0.2152205]
[1726688238108,0.0098249,60424.0,60403.0,0.2152205]
[1726688238109,0.03,60414.0,60404.0,0.023]
[1726688238369,0.03,60414.0,60413.0,0.331054]
[1726688238594,0.002,60419.0,60405.0,0.00331025]
[1726688238595,0.03,60418.0,60417.0,0.165516]
[1726688238813,0.03,60418.0,60417.0,0.0496554]
[1726688239039,0.03,60418.0,60410.0,0.331065]
[1726688239262,0.002,60419.0,60418.0,0.165513]
[1726688239486,0.03,60419.0,60418.0,0.0822]
[1726688239739,0.03,60415.0,60414.0,0.093]
[1726688239958,0.03,60415.0,60408.0,0.0822]
[1726688240196,0.06,60418.0,60411.0,0.165532]
[1726688240197,0.03,60412.0,60411.0,0.165532]
[1726688240427,0.002,60427.0,60394.0,0.331155]
[1726688240428,0.586614,60409.0,60394.0,0.331155]
[1726688240639,0.002,60427.0,60395.0,0.0822]
[1726688240640,0.165567,60399.0,60395.0,0.0822]
[1726688240862,0.06,60403.0,60396.0,0.331147]
[1726688240863,0.03,60402.0,60396.0,0.331147]
[1726688241095,0.03,60410.0,60397.0,0.16636476]
[1726688241344,0.03,60419.0,60398.0,0.02485648]
[1726688241564,0.09,60412.0,60398.0,0.02485648]
[1726688241792,0.09,60412.0,60395.0,0.0822]
[1726688241793,0.03,60409.0,60405.0,0.165547]
[1726688242035,0.03,60401.0,60395.0,0.413348]
[1726688242306,0.03,60400.0,60399.0,0.165563]
[1726688242527,0.03,60400.0,60397.0,0.165569]
[1726688242744,0.03,60400.0,60395.0,0.0822]
[1726688242745,0.03,60396.0,60395.0,0.247776]
[1726688242968,0.331092,60407.0,60386.0,0.1]
[1726688242969,0.496795,60387.0,60386.0,0.1]
[1726688243192,0.586795,60387.0,60386.0,0.1]
[1726688243638,0.06,60387.0,60386.0,0.1]
[1726688243856,0.03,60392.0,60387.0,0.165596]
[1726688244072,0.03,60392.0,60389.0,0.331185]
[1726688244300,0.09,60387.0,60386.0,0.1]
[1726688244528,0.917992,60387.0,60386.0,0.1]
[1726688245435,1.249189,60387.0,60386.0,0.1]
[1726688245875,1.349189,60387.0,60386.0,0.1]
[1726688246110,0.09,60387.0,60386.0,0.1]
[1726688246324,0.255598,60387.0,60386.0,0.11]
[1726688246554,0.588795,60387.0,60386.0,0.1]
[1726688246803,0.919992,60387.0,60386.0,0.1]
[1726688247065,0.092,60387.0,60386.0,0.1]
[1726688247298,0.092,60387.0,60386.0,0.100822]
[1726688247541,0.588795,60387.0,60386.0,0.100822]
[1726688248412,0.919992,60387.0,60386.0,0.100822]
[1726688248866,0.588795,60387.0,60386.0,0.100822]
[1726688249094,0.9788715,60387.0,60386.0,0.100822]
[1726688249322,0.03,60364.0,60355.0,0.0761]
[1726688249551,0.33123,60381.0,60355.0,0.0761]
[1726688249552,0.165683,60356.0,60355.0,0.0761]
[1726688249784,0.09,60358.0,60355.0,0.09275]
[1726688249785,0.03,60357.0,60355.0,0.09275]
[1726688250232,0.03,60357.0,60356.0,0.00705845]
[1726688250673,0.421361,60357.0,60356.0,0.00705845]
[1726688250901,0.587133,60346.0,60345.0,0.000823]
[1726688251161,0.09,60346.0,60345.0,0.000823]
[1726688251610,0.587133,60346.0,60345.0,0.000823]
[1726688251857,0.918555,60346.0,60345.0,0.000823]
[1726688252080,1.249977,60346.0,60345.0,0.000823]
[1726688252326,1.581399,60346.0,60345.0,0.000823]
[1726688252534,1.249977,60346.0,60345.0,0.000823]
[1726688253467,0.918555,60346.0,60345.0,0.000823]
[1726688253685,0.255711,60346.0,60345.0,0.000823]
[1726688254116,0.225711,60346.0,60345.0,0.000823]
[1726688254334,0.03,60346.0,60345.0,0.000823]
[1726688254573,0.03,60348.0,60345.0,0.000823]
[1726688254793,0.03,60346.0,60345.0,0.000823]
[1726688255009,0.195711,60346.0,60345.0,0.000823]
[1726688255245,0.03,60346.0,60345.0,0.0180267]
[1726688255464,0.331321,60365.0,60345.0,0.0180267]
[1726688255465,0.03,60352.0,60345.0,0.02857718]
[1726688255683,0.03,60350.0,60347.0,0.165705]
[1726688255904,0.03,60350.0,60348.0,0.02855681]
[1726688256124,0.03,60350.0,60346.0,0.16571]
[1726688256387,0.03,60350.0,60347.0,0.165706]
[1726688256605,0.06,60352.0,60347.0,0.165706]
[1726688256606,0.527116,60348.0,60347.0,0.00764954]
[1726688256821,0.03,60350.0,60347.0,0.00764954]
[1726688257037,0.331376,60355.0,60347.0,0.06174182]
[1726688257038,0.255705,60348.0,60347.0,0.06174182]
[1726688257259,0.03,60349.0,60345.0,0.000823]
[1726688257486,0.03,60346.0,60345.0,0.000823]
[1726688257763,0.03,60346.0,60345.0,0.0180258]
[1726688257989,0.032,60346.0,60345.0,0.1837388]
[1726688258216,0.227711,60346.0,60345.0,0.0180258]
[1726688258446,0.227711,60346.0,60345.0,0.000823]
[1726688258447,0.920555,60346.0,60345.0,0.000823]
[1726688258677,0.257711,60346.0,60345.0,0.000823]
[1726688258920,0.03,60346.0,60345.0,0.166536]
[1726688259189,0.03,60346.0,60345.0,0.051169]
[1726688259403,0.587133,60346.0,60345.0,0.000823]
[1726688259620,0.918555,60346.0,60345.0,0.000823]
[1726688259869,1.681399,60346.0,60345.0,0.000823]
[1726688260158,1.84448458,60346.0,60345.0,0.000823]
[1726688260451,1.681399,60346.0,60345.0,0.000823]
[1726688260977,2.012821,60346.0,60345.0,0.000823]
[1726688261265,2.035821,60346.0,60345.0,0.000823]
[1726688261785,1.653399,60346.0,60345.0,0.000823]
[1726688262053,1.683399,60346.0,60345.0,0.000823]
[1726688262780,1.706498,60342.0,60341.0,0.00549]
[1726688262980,1.683498,60342.0,60341.0,0.00549]
[1726688263201,1.252054,60342.0,60341.0,0.00549]
[1726688263861,1.683498,60342.0,60341.0,0.00549]
[1726688264370,1.69365772,60342.0,60341.0,0.00549]
[1726688265042,1.8567433,60342.0,60341.0,0.00549]
[1726688265289,1.69365772,60342.0,60341.0,0.00549]
[1726688265835,2.02510172,60342.0,60341.0,0.00549]
[1726688266082,1.69365772,60342.0,60341.0,0.00549]
[1726688266809,1.352054,60342.0,60341.0,0.00549]
[1726688267089,1.02061,60342.0,60341.0,0.00549]
[1726688267363,0.032,60343.0,60341.0,0.171214]
[1726688267594,0.02600633,60342.0,60341.0,0.502663]
[1726688267916,0.06,60358.0,60354.0,0.497067]
[1726688268086,0.01727089,60382.0,60354.0,0.497067]
[1726688268087,0.06,60360.0,60354.0,0.5799136]
[1726688268356,0.03,60363.0,60354.0,0.9112916]
[1726688268357,0.06,60363.0,60354.0,0.9112916]
[1726688268573,0.031646,60355.0,60354.0,0.5799136]
[1726688268772,0.031646,60355.0,60354.0,0.0828466]
[1726688269011,0.031646,60355.0,60354.0,0.2485356]
[1726688269258,0.031646,60355.0,60354.0,0.0828466]
[1726688269522,0.03,60354.0,60344.0,0.1]
[1726688269745,0.03,60354.0,60353.0,0.165691]
[1726688269963,0.001646,60355.0,60351.0,0.165695]
[1726688270205,0.03,60354.0,60351.0,0.165695]
[1726688270493,0.03,60354.0,60330.0,0.000822]
[1726688270494,0.03,60348.0,60343.0,0.165718]
[1726688270731,0.03,60344.0,60343.0,0.068997]
[1726688270942,0.06,60348.0,60339.0,0.0972]
[1726688270943,0.03,60342.0,60339.0,0.0972]
[1726688271154,0.06,60348.0,60339.0,0.428656]
[1726688271366,0.03,60342.0,60339.0,0.262929]
[1726688271601,0.03,60342.0,60341.0,0.164589]
[1726688271899,0.03,60342.0,60341.0,0.09559]
[1726688272094,0.331408,60349.0,60341.0,0.09559]
[1726688272095,0.03,60353.0,60342.0,0.123]
[1726688272307,0.03,60353.0,60347.0,0.331416]
[1726688272725,0.03,60353.0,60342.0,0.1]
[1726688272726,0.03,60353.0,60352.0,0.165694]
[1726688272944,0.03,60353.0,60343.0,0.023]
[1726688273185,0.03,60384.0,60343.0,0.023]
[1726688273186,0.031646,60355.0,60354.0,0.165689]
[1726688273397,0.031646,60355.0,60343.0,0.023]
[1726688273609,0.03,60353.0,60352.0,0.165694]
[1726688273817,0.03,60353.0,60350.0,0.165698]
[1726688274040,0.03,60353.0,60352.0,0.165694]
[1726688274255,0.03,60353.0,60352.0,0.0497097]
[1726688274694,0.03,60353.0,60349.0,0.331405]
[1726688275119,0.03,60353.0,60352.0,0.497083]
[1726688275546,0.03,60353.0,60352.0,0.828472]
[1726688275779,0.03,60353.0,60352.0,0.497083]
[1726688276001,0.001646,60355.0,60354.0,0.188689]
[1726688276233,0.001646,60355.0,60354.0,0.9647139]
[1726688276462,0.001646,60355.0,60346.0,0.43556281]
[1726688276681,0.001646,60355.0,60342.0,0.1992]
[1726688276682,0.167333,60355.0,60351.0,0.165694]
[1726688276892,0.195701,60350.0,60345.0,0.165712]
[1726688277153,0.165714,60345.0,60342.0,0.0992]
[1726688277401,0.001646,60355.0,60343.0,0.16305367]
[1726688277601,0.001646,60355.0,60354.0,0.497067]
[1726688277812,0.001646,60355.0,60354.0,0.828445]
[1726688278034,0.001646,60355.0,60354.0,0.1159832]
[1726688278259,0.001646,60355.0,60342.0,0.0992]
[1726688278260,0.03,60349.0,60342.0,0.0992]
[1726688278516,0.001646,60355.0,60344.0,0.331432]
[1726688278517,0.06,60351.0,60344.0,0.331432]
[1726688278733,0.06,60351.0,60350.0,0.1657]
[1726688278734,0.03,60351.0,60350.0,0.1657]
[1726688279701,0.03,60351.0,60343.0,0.331437]
[1726688279940,0.03,60351.0,60341.0,0.427861]
[1726688279941,0.165708,60347.0,60341.0,0.427861]
[1726688280190,0.03,60349.0,60345.0,0.165711]
[1726688280441,0.03,60356.0,60346.0,0.00331399]
[1726688280676,0.06,60361.0,60346.0,0.00331399]
[1726688280677,0.03,60358.0,60352.0,0.165693]
[1726688280922,0.01014804,60376.0,60343.0,0.43556281]
[1726688280923,0.06,60373.0,60354.0,0.951445]
[1726688281164,0.12641,60400.0,60354.0,0.951445]
[1726688281165,0.03,60379.0,60356.0,0.023]
[1726688281409,0.03,60379.0,60377.0,0.165624]
[1726688281678,0.03,60379.0,60358.0,0.123]
[1726688281679,0.03,60382.0,60378.0,0.0165624]
[1726688281924,0.06,60397.0,60396.0,0.331147]
[1726688282159,0.002,60402.0,60380.0,0.123]
[1726688282160,0.03,60398.0,60380.0,0.123]
[1726688282401,0.06,60403.0,60396.0,0.00741251]
[1726688282402,0.03,60400.0,60396.0,0.00741251]
[1726688282652,0.03,60400.0,60382.0,0.1]
[1726688282653,0.03,60396.0,60382.0,0.1]
[1726688282889,0.03,60396.0,60395.0,0.165576]
[1726688283163,0.331097,60406.0,60395.0,0.165576]
[1726688283164,0.06,60412.0,60407.0,0.165543]
[1726688283705,1.32679084,60423.0,60407.0,0.165543]
[1726688283706,0.0332332,60420.0,60407.0,0.76628367]
[1726688283739,0.0032332,60420.0,60415.0,0.950607]
[1726688283996,0.0032332,60420.0,60415.0,1.4730107]
[1726688284218,0.0032332,60420.0,60415.0,1.63606437]
[1726688284465,0.0032332,60420.0,60415.0,1.97410818]
[1726688284693,0.0032332,60420.0,60419.0,0.927552]
[1726688284924,0.001644,60423.0,60419.0,0.69861648]
[1726688285155,0.001644,60423.0,60422.0,0.950512]
[1726688285156,0.0046181,60423.0,60422.0,0.950512]
[1726688285378,0.0046331,60435.0,60422.0,0.950512]
[1726688285379,0.0046331,60435.0,60434.0,0.619408]
[1726688285633,0.0046331,60435.0,60434.0,1.51373967]
[1726688285843,0.0046331,60435.0,60434.0,1.85126482]
[1726688286107,0.001646,60447.0,60439.0,0.1]
[1726688286337,0.001646,60447.0,60446.0,0.619309]
[1726688286607,0.001646,60447.0,60446.0,0.165436]
[1726688286856,0.001646,60447.0,60446.0,0.496309]
[1726688287110,0.001646,60447.0,60442.0,0.330895]
[1726688287111,0.03,60446.0,60444.0,0.16544]
[1726688287348,0.03,60446.0,60445.0,0.165439]
[1726688287582,0.03,60446.0,60441.0,0.0961]
[1726688288062,0.03,60441.0,60438.0,0.0854]
[1726688288325,0.09,60438.0,60428.0,0.0958]
[1726688288619,0.03,60444.0,60430.0,0.00330887]
[1726688288825,0.032646,60447.0,60426.0,0.1]
[1726688288826,0.001646,60447.0,60431.0,0.28579844]
[1726688289096,0.001646,60447.0,60431.0,0.28248992]
[1726688289558,0.001646,60447.0,60432.0,0.1]
[1726688289559,0.03,60443.0,60432.0,0.1]
[1726688289815,0.03,60443.0,60431.0,0.11943625]
[1726688289816,0.09,60439.0,60431.0,0.11943625]
[1726688290044,0.00413592,60444.0,60431.0,0.11943625]
[1726688290045,0.03,60444.0,60433.0,0.00330874]
[1726688290249,0.03,60442.0,60433.0,0.00330874]
[1726688290458,0.167081,60447.0,60434.0,0.26636246]
[1726688290459,0.001646,60447.0,60434.0,0.26636246]
[1726688290671,0.001646,60447.0,60435.0,0.1]
[1726688290876,0.001646,60447.0,60441.0,0.1]
[1726688291106,0.001646,60447.0,60443.0,0.33089]
[1726688291317,0.001646,60447.0,60446.0,0.165436]
[1726688291530,0.001646,60447.0,60436.0,0.16305367]
[1726688291531,0.165451,60441.0,60435.0,0.165466]
[1726688291740,0.165451,60441.0,60432.0,0.33095]
[1726688291741,0.165452,60441.0,60434.0,0.165467]
[1726688291954,0.165452,60441.0,60425.0,0.0822]
[1726688291955,0.03,60440.0,60435.0,0.0381267]
[1726688292165,0.03,60439.0,60435.0,0.165465]
[1726688292376,0.03,60440.0,60432.0,0.00330891]
[1726688292597,0.06,60444.0,60432.0,0.00330891]
[1726688292802,0.001646,60447.0,60446.0,0.496309]
[1726688292803,0.031646,60447.0,60446.0,0.496309]
[1726688293011,0.001646,60447.0,60446.0,0.496309]
[1726688293230,0.03,60445.0,60434.0,0.023]
[1726688293713,0.03,60440.0,60437.0,0.16546]
[1726688293911,0.031646,60447.0,60446.0,0.165436]
[1726688294126,0.031646,60447.0,60442.0,0.330895]
[1726688294362,0.031646,60447.0,60446.0,0.496309]
[1726688294605,0.031646,60447.0,60446.0,0.165436]
[1726688294824,0.09,60442.0,60438.0,0.01750709]
[1726688295037,0.002,60443.0,60431.0,0.330951]
[1726688295038,0.09,60436.0,60431.0,0.330951]
[1726688295251,0.09,60436.0,60434.0,0.03405619]
[1726688295461,0.03,60444.0,60434.0,0.03405619]
[1726688295685,0.032,60439.0,60436.0,0.165462]
[1726688295893,0.031646,60447.0,60446.0,0.165436]
[1726688296111,0.031646,60447.0,60446.0,0.8437256]
[1726688296112,0.001646,60447.0,60446.0,0.8437256]
[1726688296335,0.001646,60447.0,60446.0,0.9437256]
[1726688296589,0.001646,60447.0,60446.0,0.6128526]
[1726688296815,0.001646,60447.0,60446.0,0.1819796]
[1726688297045,0.001646,60447.0,60446.0,1.46396033]
[1726688297263,0.001646,60447.0,60446.0,1.2975986]
[1726688297484,0.001646,60447.0,60446.0,0.9667256]
[1726688298838,0.001646,60447.0,60444.0,0.165441]
[1726688299078,0.001646,60447.0,60446.0,0.496309]
[1726688299313,0.001646,60447.0,60443.0,0.0937]
[1726688299314,0.031646,60447.0,60443.0,0.0937]
[1726688299511,0.001646,60447.0,60446.0,0.165436]
[1726688300154,0.001646,60447.0,60446.0,0.496309]
[1726688300377,0.001646,60447.0,60446.0,0.5883982]
[1726688300589,0.001646,60447.0,60446.0,1.2501442]
[1726688300801,0.001646,60447.0,60446.0,1.86707087]
[1726688301242,0.001646,60447.0,60446.0,1.0192712]
[1726688301465,0.001646,60447.0,60446.0,0.3575252]
[1726688301699,0.001646,60447.0,60446.0,0.0920892]
[1726688301906,0.001646,60447.0,60440.0,0.1]
[1726688301907,0.03,60446.0,60440.0,0.1]
[1726688302410,0.001646,60447.0,60446.0,0.165436]
[1726688302867,0.001646,60447.0,60440.0,0.1]
[1726688302869,0.001646,60447.0,60446.0,0.496309]
[1726688303144,0.001646,60447.0,60446.0,0.827182]
[1726688303757,0.03,60445.0,60433.0,0.023]
[1726688304026,0.03,60436.0,60431.0,0.800054]
[1726688304309,0.03,60436.0,60434.0,0.165467]
[1726688304524,0.03,60437.0,60432.0,0.0894269]
[1726688304805,0.09,60437.0,60432.0,0.0894269]
[1726688305087,0.03,60435.0,60425.0,0.0822]
[1726688305345,0.03,60434.0,60428.0,0.33097]
[1726688305623,0.06,60436.0,60429.0,0.041317]
[1726688305624,0.03,60431.0,60429.0,0.041317]
[1726688305855,0.03,60431.0,60414.0,0.1846]
[1726688305856,0.03,60426.0,60414.0,0.1846]
[1726688306103,0.03,60434.0,60433.0,0.165472]
[1726688306379,0.0002,60459.0,60433.0,0.165472]
[1726688306380,0.09,60438.0,60437.0,0.165461]
[1726688306692,0.09,60438.0,60433.0,0.0165472]
[1726688306693,0.03,60434.0,60433.0,0.0165472]
[1726688306918,0.03,60434.0,60411.0,0.634632]
[1726688306919,0.03,60412.0,60411.0,0.634632]
[1726688307131,0.03,60412.0,60403.0,0.0866]
[1726688307364,0.03,60412.0,60404.0,0.16555]
[1726688307365,0.165542,60408.0,60404.0,0.16555]
[1726688307606,0.03,60394.0,60389.0,0.0853]
[1726688307823,0.03,60394.0,60387.0,0.0946]
[1726688307824,0.03,60388.0,60382.0,0.3358571]
[1726688308069,0.03,60385.0,60383.0,0.00331204]
[1726688308296,0.06,60393.0,60383.0,0.03391831]
[1726688308524,0.331113,60403.0,60387.0,0.165598]
[1726688308525,0.03,60388.0,60387.0,0.165598]
[1726688308971,0.03,60388.0,60385.0,0.331206]
[1726688309245,0.03,60388.0,60387.0,0.496795]
[1726688309474,0.03,60395.0,60394.0,0.496737]
[1726688309703,0.03,60399.0,60398.0,0.165568]
[1726688309933,0.03,60400.0,60399.0,0.496696]
[1726688310213,0.03,60405.0,60404.0,0.165551]
[1726688310428,0.03,60409.0,60408.0,0.16554]
[1726688310657,0.06,60410.0,60401.0,0.1]
[1726688310658,0.03,60410.0,60406.0,0.331092]
[1726688310882,0.06,60416.0,60407.0,0.03641958]
[1726688310883,0.03,60414.0,60407.0,0.03641958]
[1726688311138,0.03,60419.0,60415.0,0.331043]
[1726688311366,0.185,60443.0,60405.0,0.0894]
[1726688311367,0.09,60437.0,60418.0,0.0979]
[1726688311594,0.03,60437.0,60436.0,0.496392]
[1726688312063,0.03,60438.0,60437.0,0.496384]
[1726688312065,0.001646,60447.0,60419.0,0.52049702]
[1726688312066,0.001646,60447.0,60438.0,0.850292]
[1726688312319,0.03,60445.0,60438.0,1.181209]
[1726688312564,0.001646,60447.0,60438.0,1.58769894]
[1726688312811,0.001646,60447.0,60438.0,1.25678194]
[1726688313060,0.001646,60447.0,60438.0,1.58769894]
[1726688313553,0.001646,60447.0,60438.0,1.25678194]
[1726688313796,0.001646,60447.0,60438.0,1.09372827]
[1726688314049,0.001646,60447.0,60438.0,1.42464527]
[1726688314288,0.001646,60447.0,60438.0,1.09372827]
[1726688314811,0.001646,60447.0,60438.0,0.827292]
[1726688315054,0.03,60444.0,60438.0,0.496375]
[1726688316091,0.06,60445.0,60438.0,0.496375]
[1726688316352,0.03,60445.0,60438.0,0.496375]
[1726688317162,0.03,60441.0,60437.0,0.0901]
[1726688317646,0.165437,60446.0,60437.0,0.0901]
[1726688317647,0.03,60446.0,60438.0,0.00330891]
[1726688317900,0.001646,60447.0,60438.0,0.18605367]
[1726688318168,0.001646,60447.0,60438.0,0.36053368]
[1726688318433,0.001646,60447.0,60438.0,0.35722532]
[1726688318675,0.09,60446.0,60438.0,0.17117165]
[1726688318930,0.03,60444.0,60437.0,0.0901]
[1726688319183,0.03,60444.0,60431.0,0.1]
[1726688319498,0.001646,60447.0,60438.0,1.158209]
[1726688319722,0.001646,60447.0,60438.0,1.42126267]
[1726688319938,0.001646,60447.0,60438.0,1.84267967]
[1726688320163,0.001646,60447.0,60438.0,2.00576525]
[1726688320394,0.001646,60447.0,60438.0,1.69784825]
[1726688320623,0.001646,60447.0,60446.0,1.69361781]
[1726688320850,0.001646,60447.0,60446.0,2.21054448]
[1726688321088,0.001646,60447.0,60446.0,1.44410867]
[1726688321337,0.001646,60447.0,60446.0,1.60719425]
[1726688322200,0.001646,60447.0,60446.0,0.99026758]
[1726688322456,0.001646,60447.0,60446.0,0.65939458]
[1726688322981,0.001646,60447.0,60446.0,0.99026758]
[1726688323284,0.03,60441.0,60426.0,0.330979]
[1726688323477,0.03,60441.0,60425.0,0.10393148]
[1726688323478,0.001646,60447.0,60446.0,0.165436]
[1726688323728,0.091646,60447.0,60446.0,0.1819796]
[1726688323975,0.422514,60447.0,60446.0,0.0165436]
[1726688324224,0.03,60445.0,60428.0,0.0033087]
[1726688324545,0.001646,60447.0,60446.0,0.496309]
[1726688324767,0.001646,60447.0,60446.0,1.42579848]
[1726688325006,0.001646,60447.0,60446.0,1.99845133]
[1726688325246,0.001646,60447.0,60446.0,2.32932433]
[1726688325493,0.001646,60447.0,60446.0,2.20975133]
[1726688326511,0.001646,60447.0,60446.0,1.77418852]
[1726688327348,0.001646,60453.0,60452.0,0.8271]
[1726688327591,0.001646,60453.0,60452.0,1.36365]
[1726688329611,0.001646,60453.0,60452.0,2.18838367]
[1726688329887,0.001646,60453.0,60452.0,1.86758007]
[1726688330134,0.0002,60459.0,60456.0,1.488685]
[1726688330401,0.001646,60468.0,60460.0,0.826992]
[1726688330672,0.001646,60468.0,60467.0,2.04697381]
[1726688330971,0.001646,60468.0,60467.0,2.57399548]
[1726688331226,0.00011,60479.0,60478.0,1.38530781]
[1726688331495,0.00011,60479.0,60478.0,2.20975748]
[1726688331991,0.00011,60479.0,60478.0,1.87905948]
[1726688332234,0.00011,60479.0,60478.0,0.949745]
[1726688332483,0.00011,60479.0,60478.0,0.08271]
[1726688332732,0.03,60478.0,60469.0,0.1]
[1726688333014,0.03,60478.0,60459.0,0.43556281]
[1726688333015,0.092,60478.0,60466.0,0.023]
[1726688333271,0.00011,60479.0,60459.0,0.43556281]
[1726688333272,0.03,60473.0,60472.0,0.165365]
[1726688333537,0.002,60472.0,60470.0,0.16537]
[1726688333762,0.06,60473.0,60471.0,0.016537]
[1726688333999,0.09,60473.0,60471.0,0.016537]
[1726688334458,0.09,60473.0,60460.0,0.0897]